bitfinex/quotes_BTCUSD_20251209
["timestamp","ask_amount","ask_price","bid_price","bid_amount"]
[1765248757762,0.005,90278.0,90277.0,2.3470378]
[1765248758334,0.05566,90278.0,90277.0,1.03670389]
[1765248758973,0.05566,90278.0,90277.0,0.00205189]
[1765248759188,0.27719791,90278.0,90277.0,0.20855589]
[1765248759474,0.27719791,90278.0,90277.0,0.00043902]
[1765248761649,0.05566,90278.0,90277.0,0.00043902]
[1765248770754,0.01661,90278.0,90277.0,0.00205189]
[1765248770970,0.005,90278.0,90277.0,0.00205189]
[1765248771360,0.005,90278.0,90277.0,2.06385576]
[1765248771590,0.005,90278.0,90277.0,2.0240378]
[1765248772722,0.005,90278.0,90277.0,2.4066513]
[1765248773274,0.004,90278.0,90277.0,2.3470378]
[1765248773478,0.01161,90288.0,90285.0,0.01107603]
[1765248773672,0.01161,90288.0,90287.0,0.08283677]
[1765248774057,0.02796,90288.0,90287.0,0.08283677]
[1765248774419,0.05075,90288.0,90287.0,0.08283677]
[1765248774617,0.05175,90288.0,90287.0,0.08283677]
[1765248774847,0.05675,90288.0,90287.0,0.08283677]
[1765248775050,0.05575,90288.0,90287.0,0.08283677]
[1765248776477,0.05675,90288.0,90287.0,0.08283677]
[1765248782176,0.03396,90288.0,90287.0,0.08283677]
[1765248782398,0.01761,90288.0,90287.0,0.08283677]
[1765248782556,0.05671,90288.0,90287.0,0.08283677]
[1765248790162,0.05671,90288.0,90287.0,0.3043526]
[1765248790365,0.05671,90288.0,90287.0,0.08283677]
[1765248794829,0.27822337,90288.0,90287.0,0.08283677]
[1765248796856,0.27822337,90288.0,90282.0,0.323]
[1765248797059,0.22153791,90278.0,90277.0,0.00043902]
[1765248797187,0.23320791,90278.0,90277.0,0.00043902]
[1765248797387,0.27347791,90278.0,90277.0,0.00043902]
[1765248798016,0.05194,90278.0,90277.0,0.00043902]
[1765248798827,0.05294,90278.0,90277.0,0.00043902]
[1765248799428,0.05294,90278.0,90277.0,0.22197939]
[1765248799762,0.05694,90278.0,90277.0,0.22197939]
[1765248802650,0.05694,90278.0,90277.0,0.00043902]
[1765248803236,0.27847791,90278.0,90277.0,0.00043902]
[1765248805531,0.05694,90278.0,90277.0,0.00043902]
[1765248807939,0.08463223,90278.0,90277.0,0.00043902]
[1765248808562,0.20589298,90278.0,90277.0,0.00043902]
[1765248808758,0.12411223,90278.0,90277.0,0.00043902]
[1765248809787,0.12311223,90278.0,90277.0,0.00043902]
[1765248809988,0.11911223,90278.0,90277.0,0.00043902]
[1765248810268,0.11911223,90278.0,90277.0,0.00143902]
[1765248811384,0.12011223,90278.0,90277.0,0.00543902]
[1765248815988,0.09811223,90278.0,90277.0,0.00543902]
[1765248817048,0.12011223,90278.0,90277.0,0.00543902]
[1765248818067,0.09811223,90278.0,90277.0,0.00543902]
[1765248819016,0.12011223,90278.0,90277.0,0.00543902]
[1765248824943,0.09811223,90278.0,90277.0,0.00543902]
[1765248825789,0.12011223,90278.0,90277.0,0.00543902]
[1765248826265,0.09811223,90278.0,90277.0,0.00543902]
[1765248832326,0.10848369,90278.0,90277.0,0.00543902]
[1765248833139,0.13048369,90278.0,90277.0,0.00543902]
[1765248835246,0.10848369,90278.0,90277.0,0.00543902]
[1765248835457,0.01107971,90255.0,90252.0,0.0398088]
[1765248835652,0.22160419,90251.0,90250.0,0.0002]
[1765248835831,0.23709419,90251.0,90250.0,0.0002]
[1765248836040,0.26163419,90251.0,90250.0,0.0002]
[1765248837395,0.26263419,90251.0,90250.0,0.0012]
[1765248837742,0.26363419,90251.0,90250.0,0.0012]
[1765248840694,0.04203,90251.0,90250.0,0.0012]
[1765248842467,0.26363419,90251.0,90250.0,0.0012]
[1765248843771,0.35210559,90251.0,90250.0,0.0012]
[1765248843977,0.22162874,90241.0,90240.0,0.00252511]
[1765248844182,0.22165331,90231.0,90230.0,0.0002]
[1765248844399,0.22165331,90231.0,90220.0,0.0002]
[1765248844400,0.22167787,90221.0,90220.0,0.0002]
[1765248844607,0.24849787,90221.0,90220.0,0.0002]
[1765248844814,0.27303787,90221.0,90220.0,0.0002]
[1765248845017,0.27303787,90221.0,90220.0,0.00079732]
[1765248845604,0.05136,90221.0,90220.0,0.00079732]
[1765248845809,0.05136,90221.0,90220.0,0.19947032]
[1765248846130,0.01133,90221.0,90220.0,0.42115065]
[1765248846492,0.02782,90221.0,90220.0,0.42815065]
[1765248846701,0.05136,90221.0,90220.0,0.42115065]
[1765248846922,0.05136,90221.0,90220.0,0.42415065]
[1765248847145,0.05236,90221.0,90220.0,0.42715065]
[1765248847550,0.05236,90221.0,90220.0,0.42415065]
[1765248848070,0.05236,90221.0,90220.0,0.42515065]
[1765248849649,0.01233,90221.0,90220.0,0.42676352]
[1765248849849,0.001,90221.0,90220.0,0.42676352]
[1765248851141,0.001,90221.0,90220.0,0.74976352]
[1765248851343,0.001,90221.0,90220.0,0.77287352]
[1765248851744,0.001,90221.0,90220.0,0.79485943]
[1765248851943,0.01133,90231.0,90230.0,0.22165576]
[1765248852140,0.01133,90231.0,90230.0,2.12634276]
[1765248853213,0.01533,90231.0,90230.0,2.12734276]
[1765248853431,0.01533,90231.0,90230.0,1.94050276]
[1765248854143,0.03044,90231.0,90230.0,1.94050276]
[1765248854861,0.03044,90231.0,90230.0,1.94211563]
[1765248855059,0.01533,90231.0,90230.0,1.80674263]
[1765248855290,0.004,90231.0,90230.0,1.80674263]
[1765248855683,0.004,90231.0,90230.0,1.80712883]
[1765248856039,0.004,90231.0,90230.0,1.82911474]
[1765248856998,0.004,90231.0,90230.0,1.80712883]
[1765248857194,0.004,90231.0,90230.0,1.69758183]
[1765248857338,0.004,90231.0,90230.0,1.69788046]
[1765248862834,0.004,90231.0,90230.0,2.04286637]
[1765248863182,0.004,90231.0,90230.0,2.06739637]
[1765248863757,0.003,90231.0,90230.0,2.06739637]
[1765248864524,0.02453,90238.0,90237.0,0.77903757]
[1765248865876,0.03964,90238.0,90237.0,0.77903757]
[1765248866048,0.04264,90238.0,90237.0,0.78003757]
[1765248866547,0.01811,90238.0,90237.0,0.78003757]
[1765248870984,0.04264,90238.0,90237.0,0.58119957]
[1765248871734,0.04264,90238.0,90237.0,0.55498057]
[1765248873519,0.04264,90238.0,90237.0,0.333342]
[1765248873925,0.04264,90238.0,90237.0,0.001]
[1765248874122,0.06464,90238.0,90237.0,0.001]
[1765248874754,0.01108217,90235.0,90232.0,0.00023889]
[1765248874915,0.01108217,90235.0,90233.0,0.08283677]
[1765248875114,0.02453,90234.0,90233.0,0.08283677]
[1765248875430,0.05111,90234.0,90233.0,0.08283677]
[1765248875949,0.27275594,90234.0,90232.0,0.00023889]
[1765248876145,0.03964,90233.0,90232.0,0.00023889]
[1765248877821,0.04264,90233.0,90232.0,0.00123889]
[1765248878268,0.04364,90233.0,90232.0,0.00123889]
[1765248883197,0.06788104,90233.0,90232.0,0.00123889]
[1765248884024,0.11850668,90233.0,90232.0,0.00123889]
[1765248884240,0.11850668,90233.0,90220.0,0.0002]
[1765248884241,0.01108364,90223.0,90220.0,0.0002]
[1765248884388,0.03308487,90213.0,90210.0,0.0002]
[1765248884761,0.02714,90211.0,90210.0,0.0002977]
[1765248884982,0.04914,90211.0,90210.0,0.0002977]
[1765248885175,0.05212,90211.0,90210.0,0.00095486]
[1765248885763,0.05212,90211.0,90200.0,0.0002]
[1765248885764,0.22172703,90201.0,90200.0,0.0002]
[1765248885985,0.28834703,90201.0,90200.0,0.00027727]
[1765248886144,0.31332703,90201.0,90200.0,0.00027727]
[1765248887467,0.31332703,90201.0,90200.0,0.00627727]
[1765248887688,0.31532703,90201.0,90200.0,0.00827727]
[1765248893914,0.38141901,90201.0,90200.0,0.00827727]
[1765248894911,0.37941901,90201.0,90200.0,0.00227727]
[1765248895112,0.38041901,90201.0,90200.0,0.00327727]
[1765248895616,0.70341901,90201.0,90200.0,0.00127727]
[1765248895772,0.70441901,90201.0,90200.0,0.00127727]
[1765248895977,0.7147261,90201.0,90200.0,0.00127727]
[1765248896173,0.7191668,90201.0,90200.0,0.00127727]
[1765248896379,0.7191668,90201.0,90200.0,0.00157604]
[1765248897014,0.22175161,90191.0,90190.0,0.0002]
[1765248897241,0.28837161,90191.0,90190.0,0.00031619]
[1765248897441,0.31335161,90191.0,90190.0,0.00031619]
[1765248898359,0.31535161,90191.0,90190.0,0.00531619]
[1765248898815,0.2437762,90181.0,90180.0,0.0002]
[1765248899007,0.2437762,90181.0,90170.0,0.0002]
[1765248899008,0.23179898,90171.0,90170.0,0.0002]
[1765248899219,0.30139898,90171.0,90170.0,0.00058759]
[1765248901329,0.30339898,90171.0,90170.0,0.00458759]
[1765248901934,0.0716,90171.0,90170.0,0.00458759]
[1765248902138,0.05412,90171.0,90170.0,0.00658759]
[1765248902342,0.0716,90171.0,90170.0,0.00658759]
[1765248903022,0.05412,90171.0,90170.0,0.00658759]
[1765248907068,0.02914,90171.0,90170.0,0.00658759]
[1765248907274,0.0134,90171.0,90170.0,0.00658759]
[1765248907886,0.0134,90171.0,90170.0,0.00748427]
[1765248908083,0.02993,90171.0,90170.0,0.00748427]
[1765248908681,0.05292,90171.0,90170.0,0.00748427]
[1765248911489,0.0134,90171.0,90170.0,0.00748427]
[1765248911694,0.002,90171.0,90170.0,0.00748427]
[1765248911867,0.002,90171.0,90170.0,0.09032104]
[1765248913734,0.02983819,90204.0,90170.0,0.65489991]
[1765248913923,0.01108684,90197.0,90195.0,0.323]
[1765248914124,0.23804932,90196.0,90195.0,0.323]
[1765248914337,0.23804932,90196.0,90186.0,0.46744664]
[1765248914338,0.01108782,90189.0,90186.0,0.46744664]
[1765248914499,0.02768,90187.0,90184.0,0.33408844]
[1765248914707,0.01631,90185.0,90184.0,0.57709444]
[1765248915120,0.0399,90185.0,90184.0,0.57709444]
[1765248915322,0.01108745,90192.0,90189.0,0.428925]
[1765248915688,0.01108745,90192.0,90191.0,0.314324]
[1765248915845,0.0110877,90190.0,90187.0,0.321419]
[1765248916287,0.01631,90188.0,90187.0,0.321419]
[1765248916700,0.01108733,90193.0,90190.0,0.37885]
[1765248916916,0.01108745,90192.0,90189.0,0.363945]
[1765248917105,0.01631,90190.0,90188.0,0.366205]
[1765248917303,0.01631,90189.0,90188.0,0.366205]
[1765248917837,0.01108659,90199.0,90192.0,0.23283628]
[1765248918041,0.04107,90198.0,90194.0,0.01108721]
[1765248918197,0.05143066,90198.0,90195.0,0.01108708]
[1765248918551,0.04107,90198.0,90195.0,0.01108708]
[1765248918696,0.01631,90196.0,90195.0,0.01108708]
[1765248918897,0.02245635,90201.0,90196.0,0.96658596]
[1765248919184,0.03467647,90200.0,90199.0,0.08283677]
[1765248919408,0.05098647,90200.0,90199.0,0.08283677]
[1765248920181,0.0399,90200.0,90199.0,0.08283677]
[1765248920455,0.02131,90200.0,90199.0,0.08483677]
[1765248921134,0.02231,90200.0,90199.0,0.08483677]
[1765248921359,0.006,90200.0,90199.0,0.08483677]
[1765248923083,0.02231,90200.0,90199.0,0.08483677]
[1765248925417,0.02231,90200.0,90199.0,1.32058677]
[1765248925626,0.02231,90200.0,90199.0,0.66679477]
[1765248926246,0.02231,90200.0,90199.0,0.40603177]
[1765248929846,0.02231,90200.0,90199.0,0.62776371]
[1765248930071,0.006,90200.0,90199.0,0.62776371]
[1765248931868,0.006,90200.0,90199.0,0.65136249]
[1765248932383,0.006,90200.0,90199.0,0.62937658]
[1765248933504,0.006,90200.0,90199.0,0.65136249]
[1765248933865,0.006,90200.0,90199.0,0.97436249]
[1765248934065,0.006,90200.0,90199.0,0.99184249]
[1765248934259,0.006,90200.0,90199.0,0.96985658]
[1765248934468,0.005,90200.0,90199.0,0.98733658]
[1765248935466,0.005,90200.0,90199.0,0.96985658]
[1765248935672,0.01137,90208.0,90207.0,0.94847428]
[1765248936456,0.05127,90208.0,90207.0,0.83548928]
[1765248936654,0.01108438,90217.0,90213.0,0.22169535]
[1765248936990,0.01108426,90218.0,90214.0,0.43034577]
[1765248937199,0.02359,90219.0,90214.0,0.65204085]
[1765248937400,0.01108438,90217.0,90214.0,0.75334577]
[1765248937547,0.01108426,90218.0,90214.0,0.97504085]
[1765248937746,0.03467413,90219.0,90214.0,0.97504085]
[1765248938768,0.02359,90219.0,90214.0,0.97504085]
[1765248938969,0.01237,90215.0,90214.0,0.97704085]
[1765248939570,0.01237,90215.0,90214.0,0.75534577]
[1765248939766,0.05227,90215.0,90214.0,0.75534577]
[1765248940203,0.05227,90215.0,90214.0,0.75734577]
[1765248942662,0.05227,90215.0,90214.0,0.573102]
[1765248942834,0.05227,90215.0,90214.0,0.004]
[1765248943041,0.07998157,90215.0,90214.0,0.004]
[1765248944245,0.05227,90215.0,90214.0,0.212032]
[1765248946832,0.05227,90215.0,90214.0,0.004]
[1765248947036,0.05227,90215.0,90214.0,0.114664]
[1765248958566,0.05171,90215.0,90214.0,0.114664]
[1765248965810,0.05171,90215.0,90214.0,0.004]
[1765248969967,0.13018616,90215.0,90214.0,0.004]
[1765248970183,0.22174424,90194.0,90192.0,0.00023906]
[1765248970322,0.02794,90193.0,90192.0,0.00031624]
[1765248970533,0.05077,90193.0,90192.0,0.00031624]
[1765248971752,0.05877,90193.0,90192.0,0.00231624]
[1765248971950,0.05977,90193.0,90192.0,0.00231624]
[1765248975157,0.03694,90193.0,90192.0,0.00231624]
[1765248975357,0.06182,90193.0,90192.0,0.00231624]
[1765248976180,0.28356669,90193.0,90192.0,0.00231624]
[1765248984233,0.03694,90193.0,90192.0,0.00231624]
[1765248984438,0.06182,90193.0,90192.0,0.00231624]
[1765248985340,0.03694,90193.0,90192.0,0.00231624]
[1765248985573,0.06182,90193.0,90192.0,0.00231624]
[1765248986205,0.03694,90193.0,90192.0,0.00231624]
[1765248986426,0.06182,90193.0,90192.0,0.00231624]
[1765248988332,0.08310902,90193.0,90192.0,0.00231624]
[1765248994480,0.10510902,90193.0,90192.0,0.00231624]
[1765248994925,0.08310902,90193.0,90192.0,0.00231624]
[1765248995126,0.10510902,90193.0,90192.0,0.00231624]
[1765248997184,0.09610902,90193.0,90192.0,0.00031624]
[1765248997432,0.10010902,90193.0,90192.0,0.00231624]
[1765248999234,0.11048271,90193.0,90192.0,0.00231624]
[1765249000414,0.11691202,90193.0,90192.0,0.00231624]
[1765249000619,0.2218008,90171.0,90170.0,0.0002]
[1765249000832,0.2483408,90171.0,90170.0,0.11004759]
[1765249001170,0.2732208,90171.0,90170.0,0.11004759]
[1765249001574,0.2732208,90171.0,90170.0,0.00058759]
[1765249002534,0.2742208,90171.0,90170.0,0.00058759]
[1765249002668,0.2772208,90171.0,90170.0,0.00058759]
[1765249003940,0.2772208,90171.0,90170.0,0.18981759]
[1765249004927,0.05542,90171.0,90170.0,0.18981759]
[1765249005329,0.03054,90171.0,90170.0,0.27265436]
[1765249005480,0.01533,90171.0,90170.0,0.27265436]
[1765249006091,0.01533,90171.0,90170.0,0.27331195]
[1765249006335,0.05343,90171.0,90170.0,0.27331195]
[1765249007457,0.03085,90171.0,90170.0,0.27331195]
[1765249007669,0.05343,90171.0,90170.0,0.27331195]
[1765249008727,0.03085,90171.0,90170.0,0.27331195]
[1765249009533,0.2752308,90171.0,90170.0,0.15334218]
[1765249009735,0.2752308,90171.0,90170.0,0.00124518]
[1765249011127,0.37594994,90171.0,90170.0,0.00124518]
[1765249011323,0.39630647,90171.0,90170.0,0.00124518]
[1765249012210,0.39230647,90171.0,90170.0,0.00124518]
[1765249012418,0.39830647,90171.0,90170.0,0.00124518]
[1765249012623,0.40030647,90171.0,90170.0,0.00124518]
[1765249014423,0.2792308,90171.0,90170.0,0.00124518]
[1765249015121,0.2967108,90171.0,90170.0,0.00124518]
[1765249015322,0.2792308,90171.0,90170.0,0.00124518]
[1765249021408,0.3012308,90171.0,90170.0,0.00124518]
[1765249023072,0.2792308,90171.0,90170.0,0.00124518]
[1765249026349,0.3012308,90171.0,90170.0,0.00124518]
[1765249029090,0.38191933,90171.0,90170.0,0.00124518]
[1765249029265,0.39228662,90171.0,90170.0,0.00124518]
[1765249030259,0.39028662,90171.0,90170.0,0.00124518]
[1765249030467,0.39028662,90171.0,90170.0,0.00324518]
[1765249030666,0.38428662,90171.0,90170.0,0.00324518]
[1765249031046,0.38628662,90171.0,90170.0,0.00324518]
[1765249036149,0.38628662,90171.0,90160.0,0.0002]
[1765249036354,0.2590154,90161.0,90160.0,0.0002]
[1765249036647,0.28686269,90161.0,90160.0,0.0002]
[1765249036852,0.31109269,90161.0,90160.0,0.00049897]
[1765249037672,0.31309269,90161.0,90160.0,0.00049897]
[1765249039033,0.31309269,90161.0,90160.0,0.00249897]
[1765249039446,0.39098422,90161.0,90160.0,0.00249897]
[1765249041362,0.31309269,90161.0,90160.0,0.00249897]
[1765249048931,0.31309269,90161.0,90150.0,0.0002]
[1765249048932,0.22185,90151.0,90150.0,0.0002]
[1765249049091,0.28826,90151.0,90150.0,0.0002]
[1765249049295,0.31249,90151.0,90150.0,0.0002]
[1765249049682,0.32284129,90151.0,90150.0,0.0002]
[1765249050161,0.32684129,90151.0,90150.0,0.0002]
[1765249051193,0.32884129,90151.0,90150.0,0.0002]
[1765249052132,0.32684129,90151.0,90150.0,0.0002]
[1765249052552,0.32284129,90151.0,90150.0,0.0002]
[1765249052762,0.32484129,90151.0,90150.0,0.0002]
[1765249054682,0.32484129,90151.0,90150.0,0.00049903]
[1765249055851,0.30284129,90151.0,90150.0,0.00049903]
[1765249056254,0.29249,90151.0,90150.0,0.00061524]
[1765249056456,0.30284081,90151.0,90150.0,0.00061524]
[1765249058369,0.29249,90151.0,90150.0,0.00061524]
[1765249059274,0.27501,90151.0,90150.0,0.00061524]
[1765249059420,0.25078,90151.0,90150.0,0.00061524]
[1765249060546,0.25178,90151.0,90150.0,0.00061524]
[1765249060741,0.02793,90151.0,90150.0,0.00061524]
[1765249061067,0.02793,90151.0,90150.0,0.00547811]
[1765249061068,0.001,90151.0,90150.0,0.00547811]
[1765249061680,0.01174,90157.0,90155.0,0.22184016]
[1765249061851,0.01174,90157.0,90156.0,0.08283677]
[1765249062418,0.02693,90157.0,90156.0,0.08283677]
[1765249063394,0.03393,90157.0,90156.0,0.08483677]
[1765249063588,0.05736,90157.0,90156.0,0.08483677]
[1765249063814,0.03293,90157.0,90156.0,0.08483677]
[1765249063989,0.05636,90157.0,90156.0,0.08483677]
[1765249064213,0.05736,90157.0,90156.0,0.08483677]
[1765249065802,0.03393,90157.0,90156.0,0.08483677]
[1765249066005,0.01874,90157.0,90156.0,0.08483677]
[1765249067150,0.0344,90157.0,90156.0,0.08483677]
[1765249067482,0.05783,90157.0,90156.0,0.002]
[1765249073571,0.007,90157.0,90156.0,0.002]
[1765249074208,0.04609,90157.0,90156.0,0.002]
[1765249074549,0.26792524,90157.0,90156.0,0.002]
[1765249075794,0.04609,90157.0,90156.0,0.002]
[1765249078960,0.007,90157.0,90156.0,0.002]
[1765249080888,0.007,90157.0,90156.0,0.00335702]
[1765249081255,0.007,90157.0,90156.0,0.002]
[1765249082036,0.02266,90157.0,90156.0,0.002]
[1765249082210,0.04609,90157.0,90156.0,0.002]
[1765249084154,0.02266,90157.0,90156.0,0.002]
[1765249084750,0.04609,90157.0,90156.0,0.002]
[1765249084975,0.02266,90157.0,90156.0,0.002]
[1765249085554,0.04609,90157.0,90156.0,0.002]
[1765249091896,0.007,90157.0,90156.0,0.002]
[1765249092134,0.007,90157.0,90156.0,0.2238377]
[1765249092690,0.007,90157.0,90156.0,0.22545057]
[1765249093086,0.007,90157.0,90156.0,0.00361287]
[1765249097051,0.007,90157.0,90156.0,0.00496989]
[1765249097688,0.007,90157.0,90156.0,2.3564558]
[1765249098018,0.007,90157.0,90156.0,2.39165758]
[1765249098232,0.007,90157.0,90156.0,2.32986287]
[1765249098442,0.007,90157.0,90156.0,2.36977392]
[1765249099417,0.007,90157.0,90156.0,2.32986287]
[1765249099876,0.007,90157.0,90156.0,2.33311287]
[1765249100902,0.007,90157.0,90156.0,2.37302392]
[1765249101333,0.007,90157.0,90156.0,2.36977392]
[1765249102422,0.007,90157.0,90156.0,2.32986287]
[1765249108287,0.00304887,90157.0,90156.0,2.44554509]
[1765249108492,0.01108745,90192.0,90188.0,0.01108794]
[1765249108697,0.03436708,90195.0,90191.0,0.01108758]
[1765249108892,0.02328,90194.0,90192.0,0.01108745]
[1765249109093,0.0121,90198.0,90193.0,0.01108733]
[1765249109308,0.0121,90198.0,90193.0,0.23283402]
[1765249109672,0.02357329,90198.0,90195.0,0.01108708]
[1765249109858,0.02357329,90198.0,90193.0,0.01108733]
[1765249110051,0.02713,90194.0,90191.0,0.01108758]
[1765249110251,0.01503,90192.0,90191.0,0.23283769]
[1765249111095,0.01108794,90188.0,90185.0,0.17995931]
[1765249111315,0.0110877,90190.0,90186.0,0.188052]
[1765249111316,0.0261177,90190.0,90186.0,0.188052]
[1765249111506,0.0110877,90190.0,90186.0,0.188052]
[1765249111930,0.2328587,90184.0,90173.0,0.01108979]
[1765249112178,0.24497107,90179.0,90178.0,0.323]
[1765249112513,0.28328107,90179.0,90178.0,0.323]
[1765249113318,0.02713,90179.0,90178.0,0.323]
[1765249114162,0.02713,90179.0,90176.0,0.33508942]
[1765249114365,0.03738,90179.0,90178.0,0.001]
[1765249114790,0.05241,90179.0,90178.0,0.324]
[1765249114930,0.05241,90179.0,90178.0,0.325]
[1765249115669,0.05241,90179.0,90178.0,0.324]
[1765249115670,0.05041,90179.0,90178.0,0.324]
[1765249116002,0.02713,90179.0,90178.0,0.324]
[1765249116168,0.05041,90179.0,90178.0,0.324]
[1765249116990,0.05141,90179.0,90178.0,0.324]
[1765249117325,0.05041,90179.0,90178.0,0.324]
[1765249117531,0.05141,90179.0,90178.0,0.325]
[1765249118664,0.05141,90179.0,90178.0,0.002]
[1765249119066,0.02813,90179.0,90178.0,0.002]
[1765249119267,0.05141,90179.0,90178.0,0.002]
[1765249123375,0.05282,90179.0,90178.0,0.002]
[1765249124171,0.05282,90179.0,90178.0,0.001]
[1765249124324,0.22180326,90170.0,90169.0,0.46782088]
[1765249124537,0.22180326,90170.0,90161.0,0.323]
[1765249124538,0.28454342,90170.0,90161.0,0.323]
[1765249124742,0.23721818,90168.0,90161.0,0.323]
[1765249125123,0.26190818,90168.0,90161.0,0.33409127]
[1765249125693,0.26229451,90168.0,90162.0,0.01109114]
[1765249125881,0.26229451,90168.0,90163.0,0.33409102]
[1765249126690,0.26229451,90168.0,90164.0,0.3340909]
[1765249126894,0.26529451,90168.0,90167.0,0.08383677]
[1765249127108,0.01879633,90168.0,90167.0,0.08383677]
[1765249127457,0.00338633,90168.0,90167.0,0.08383677]
[1765249128300,0.00338633,90168.0,90167.0,0.30564741]
[1765249129950,0.24877802,90164.0,90163.0,0.298]
[1765249130089,0.24877802,90164.0,90152.0,0.00023922]
[1765249130090,0.22184262,90154.0,90152.0,0.00023922]
[1765249130469,0.02696,90153.0,90152.0,0.00023922]
[1765249130667,0.05165,90153.0,90152.0,0.00023922]
[1765249131519,0.05165,90153.0,90152.0,0.00123922]
[1765249131648,0.05165,90153.0,90152.0,0.00023922]
[1765249131853,0.05165,90153.0,90152.0,0.00723922]
[1765249132104,0.05365,90153.0,90152.0,0.00723922]
[1765249132866,0.05365,90153.0,90152.0,0.00923922]
[1765249141265,0.01355,90153.0,90152.0,0.00923922]
[1765249141672,0.002,90153.0,90152.0,0.00923922]
[1765249142014,0.0421,90153.0,90152.0,0.00923922]
[1765249142214,0.002,90153.0,90152.0,0.01085209]
[1765249142454,0.002,90153.0,90152.0,0.02640209]
[1765249143065,0.002,90153.0,90152.0,1.17989109]
[1765249143268,0.002,90153.0,90152.0,1.09066409]
[1765249143510,0.002,90153.0,90152.0,0.98970509]
[1765249143691,0.002,90153.0,90152.0,0.98270509]
[1765249143850,0.01109163,90158.0,90155.0,0.011092]
[1765249144067,0.002,90153.0,90152.0,0.00285209]
[1765249144266,0.01741,90153.0,90152.0,0.00285209]
[1765249144467,0.01741,90153.0,90152.0,0.00123922]
[1765249144712,0.06983063,90153.0,90152.0,0.00123922]
[1765249145901,0.06783063,90153.0,90152.0,0.00023922]
[1765249146074,0.06783063,90153.0,90152.0,0.00123922]
[1765249146273,0.06883063,90153.0,90152.0,0.00123922]
[1765249146855,0.09083063,90153.0,90152.0,0.00123922]
[1765249147010,0.09083063,90153.0,90152.0,0.00223922]
[1765249147525,0.06883063,90153.0,90152.0,0.00223922]
[1765249150063,0.06883063,90153.0,90140.0,0.0002]
[1765249150064,0.22187461,90141.0,90140.0,0.0002]
[1765249150256,0.28849461,90141.0,90140.0,0.0002]
[1765249150460,0.31208461,90141.0,90140.0,0.0002]
[1765249152142,0.31808461,90141.0,90140.0,0.0012]
[1765249152648,0.31208461,90141.0,90140.0,0.0012]
[1765249152777,0.31308461,90141.0,90140.0,0.0022]
[1765249152984,0.31208461,90141.0,90140.0,0.0002]
[1765249153386,0.31508461,90141.0,90140.0,0.0012]
[1765249153586,0.31208461,90141.0,90140.0,0.0002]
[1765249154015,0.29008461,90141.0,90140.0,0.0002]
[1765249154984,0.31208461,90141.0,90140.0,0.0002]
[1765249155388,0.31408461,90141.0,90140.0,0.0012]
[1765249155588,0.31208461,90141.0,90140.0,0.00055888]
[1765249156030,0.31308461,90141.0,90140.0,0.00355888]
[1765249159429,0.3234263,90141.0,90140.0,0.00355888]
[1765249159562,0.40132735,90141.0,90140.0,0.00355888]
[1765249164529,0.23189741,90131.0,90130.0,0.0002]
[1765249164753,0.2881791,90131.0,90130.0,0.0002]
[1765249164930,0.3129691,90131.0,90130.0,0.0002]
[1765249165130,0.36867407,90131.0,90130.0,0.0002]
[1765249165726,0.36871689,90131.0,90130.0,0.0002]
[1765249166076,0.37071689,90131.0,90130.0,0.0012]
[1765249166203,0.29749192,90131.0,90130.0,0.0012]
[1765249166407,0.31501192,90131.0,90130.0,0.0012]
[1765249170334,0.31501192,90131.0,90130.0,0.00149913]
[1765249178621,0.32701374,90131.0,90130.0,0.00149913]
[1765249179079,0.30501374,90131.0,90130.0,0.00149913]
[1765249188390,0.32701374,90131.0,90130.0,0.00149913]
[1765249188813,0.40870211,90131.0,90130.0,0.00149913]
[1765249190195,0.32701374,90131.0,90130.0,0.00149913]
[1765249193533,0.30501374,90131.0,90130.0,0.00149913]
[1765249200118,0.26958205,90131.0,90130.0,0.00149913]
[1765249200339,0.24146205,90131.0,90130.0,0.01724913]
[1765249200514,0.24146205,90131.0,90130.0,0.00149913]
[1765249200721,0.00204282,90131.0,90130.0,0.018862]
[1765249200920,4.282e-05,90131.0,90130.0,0.042292]
[1765249201125,4.282e-05,90131.0,90130.0,0.365292]
[1765249201325,0.00704282,90131.0,90130.0,1.95074691]
[1765249201625,0.00904282,90131.0,90130.0,1.95074691]
[1765249201952,0.00714058,90131.0,90130.0,1.95074691]
[1765249202149,0.00514058,90131.0,90130.0,1.95074691]
[1765249202568,0.001,90131.0,90130.0,1.94874691]
[1765249202973,0.01752,90148.0,90145.0,0.01109323]
[1765249203280,0.01756297,90148.0,90147.0,0.08283677]
[1765249203818,0.22185985,90147.0,90145.0,0.323]
[1765249204199,0.0110936,90142.0,90141.0,1.106136]
[1765249204768,0.0110936,90142.0,90140.0,0.80367]
[1765249205113,0.01109336,90144.0,90140.0,0.778921]
[1765249205307,0.01109348,90143.0,90140.0,0.778921]
[1765249205713,0.004,90142.0,90141.0,0.796665]
[1765249205931,0.004,90142.0,90141.0,0.601897]
[1765249205932,0.22317899,90142.0,90141.0,0.601897]
[1765249206168,0.23916899,90142.0,90141.0,0.001]
[1765249206622,0.28450899,90142.0,90141.0,0.001]
[1765249206821,0.26250899,90142.0,90141.0,0.001]
[1765249207023,0.22189923,90131.0,90130.0,0.4700496]
[1765249207176,0.23279923,90131.0,90130.0,0.00181287]
[1765249207548,0.23299089,90133.0,90130.0,0.00181287]
[1765249207549,0.01109471,90133.0,90130.0,0.00181287]
[1765249207855,0.22189677,90132.0,90130.0,0.00181287]
[1765249208242,0.01109471,90133.0,90132.0,0.0002393]
[1765249209315,0.05042471,90133.0,90132.0,0.0002393]
[1765249210493,0.07816149,90133.0,90132.0,0.0002393]
[1765249211010,0.05042471,90133.0,90132.0,0.0002393]
[1765249211211,0.05042471,90133.0,90132.0,0.0012393]
[1765249211542,0.05142471,90133.0,90132.0,0.0012393]
[1765249211835,0.05142471,90133.0,90132.0,0.0062393]
[1765249212178,0.05242471,90133.0,90132.0,0.0062393]
[1765249212586,0.01309471,90133.0,90132.0,0.01831217]
[1765249212760,0.01309471,90133.0,90132.0,0.00785217]
[1765249212761,0.05359471,90133.0,90132.0,0.00785217]
[1765249213337,0.05359471,90133.0,90132.0,0.00685217]
[1765249213543,0.05559471,90133.0,90132.0,0.00685217]
[1765249214136,0.05359471,90133.0,90132.0,0.00685217]
[1765249214473,0.05359471,90133.0,90132.0,0.00785217]